Workbook

Sheet P&L Top Dog
B1: 99-101 E Main St Milton, MA 01757
B11: INSTRUCTIONS - INPUT DATA IN GREEN FIELDS ONLY. DO NOT ENTER ANYWHERE ELSE OR FORMULAS WILL BE CORRUPTED.
B13: Price | C13: 975000
B14: Equity | C14: =C13*D14 -> 243750 | D14: =+D16-D15 -> 0.25
B15: Mortgage | C15: =C13*D15 -> 731250 | D15: 0.75
D16: 1
B18: Mortgage Interest Rate | C18: 0.07
B19: Mortgage Term - years | C19: 25
B21: Number of units | C21: 6
B22: Price per unit | C22: =+C13/C21 -> 162500
E23: 2025 | G23: 2026 Projections
B24: NOI cap rate | E24: =E67/C13 -> 0.06589046154 | G24: =G67/C13 -> 0.08712328205
B25: Return on Investment (Net Cashflow before Mortgage Amortization / Equity) | E25: =+(E75/C14) -> 0.03377300264 | G25: =+G75/(C14) -> 0.1139289001
B26: Return on Investment (Net Cashflow after Mortgage Amortization / Equity) | E26: =+(E75-E77)/C14 -> -0.01045774179 | G26: =+(G75-G77)/C14 -> 0.06969815565
B27: DSCR (Cashflow after Cap Reserve / Total Debt Repayment) | E27: =+E71/E79 -> 0.9588990694 | G27: =+G71/G79 -> 1.273927117
B28: DSCR (Cashflow after Cap Reserve / Mortgage Interest) | E28: =+E71/E73 -> 1.160663337 | G28: =+G71/G73 -> 1.541977197
B29: Breakeven occupancy (excluding capital reserves) | E29: =(E65+E73)/E51 -> 0.8637523113 | G29: =(G65+G73)/G51 -> 0.7161026094
B30: Income Multiplier | E30: =+C13/E51 -> 10.21498617 | G30: =+C13/G51 -> 8.212047706
E32: Rent | G32: Potential Rent
C33: SF | D33: Baths | E33: Current | G33: Month | H33: Year
B34: 101 A&B (Barber Shop) | C34: 1800 | D34: 0.5 | E34: 1600 | G34: 2500 | H34: =+G34*12 -> 30000
B35: 99 (NE Liquidators) | C35: 700 | D35: 0.5 | E35: 1500 | G35: 1500 | H35: 18000
B36: 3 Middleton (Unit A) | C36: 800 | D36: 1 | E36: 1200 | G36: 1500 | H36: 18000
B37: 3 Middleton (Unit B) | C37: 800 | D37: 1 | E37: 1200 | G37: 1500 | H37: 18000
B38: 99 ½ E Main st (Unit C) | C38: 800 | D38: 1 | E38: 1200 | G38: 1500 | H38: 18000
B39: Warehouse | C39: 1500 | D39: 0.5 | E39: 1500 | G39: 1700 | H39: 20400
H40: 0
H41: 0
H42: 0
H43: 0
H44: 0
C45: =SUM(C34:C44) -> 6400 | D45: =SUM(D34:D44) -> 4.5 | E45: =SUM(E34:E44) -> 8200 | G45: =SUM(G34:G44) -> 10200 | H45: =SUM(H34:H44) -> 122400
E47: 2025 Rent & Expenses | G47: Potential Rent & Projected Expenses
B48: INCOME
B49: Gross Rents | E49: =E45*12 -> 98400 | G49: =+H45 -> 122400
B50: Vacancy rate | C50: 0.03 | E50: =+E49*C50 -> 2952 | G50: =+G49*C50 -> 3672
B51: Net Rents | E51: =E49-E50 -> 95448 | G51: =+G49-G50 -> 118728
B52: Laundry
B53: OPERATING EXPENSES
B54: Insurance | E54: 8500 | G54: 8500
B55: Real Estate Taxes | E55: 10000 | G55: 10000
B56: Repairs & Maintenance | C56: 0.05 | E56: =+E51*C56 -> 4772.4 | G56: =+G51*C56 -> 5936.4
B57: Management Fee | C57: 0.05 | E57: =+E51*C57 -> 4772.4 | G57: =+G51*C57 -> 5936.4
B58: Dumpster Fee
B59: Land scape/Snow removal | E59: 1000 | G59: 1000
B60: Utilities Electric | E60: 300 | G60: 350
B61: Fire Alarm Quarterly | E61: 360 | G61: 360
B62: Water | E62: 1000 | G62: 1100
B63: Sewer | E63: 500 | F63: 1 | G63: 600
B64: Parking Expense | E64: 0 | G64: 0
B65: Total Operating Expenses | E65: =SUM(E54:E64) -> 31204.8 | G65: =SUM(G54:G64) -> 33782.8
B67: Net Operating Income (NOI) | E67: =E51+E52-E65 -> 64243.2 | G67: =G51+G52-G65 -> 84945.2
B69: Capital Reserves | C69: 0.05 | E69: =+E51*C69 -> 4772.4 | G69: =+G51*C69 -> 5936.4
B71: Cash flow after cap reserve and before mortgage int. | E71: =E67-E69 -> 59470.8 | G71: =G67-G69 -> 79008.8
B73: Mortgage Interest | E73: =PMT(C18/12,99*12,-C15)*12 -> 51238.63061 | G73: =PMT(C18/12,99*12,-C15)*12 -> 51238.63061
B75: Net Cashflow | E75: =E71-E73 -> 8232.169394 | G75: =G71-G73 -> 27770.16939
B77: Mortgage Amortization | E77: =PMT(C18/12,C19*12,-C15)*12-PMT(C18/12,99*12,-C15)*12 -> 10781.24395 | G77: =PMT(C18/12,C19*12,-C15)*12-PMT(C18/12,99*12,-C15)*12 -> 10781.24395
B79: Total Annual Mortgage Payment | E79: =+E77+E73 -> 62019.87456 | G79: =+G77+G73 -> 62019.87456
